bitfinex/quotes_SOLUSD_20241005
["timestamp","ask_amount","ask_price","bid_price","bid_amount"]
[1728160589058,37.6088,141.98,141.92,50.0]
[1728160589253,7.0457,141.93,141.92,50.0]
[1728160589572,15.0482,141.96,141.9,0.6113486]
[1728160589775,7.0467,141.91,141.9,0.6113486]
[1728160609385,27.0467,141.91,141.9,0.6113486]
[1728160609578,7.0467,141.91,141.9,0.6113486]
[1728160612174,7.0482,141.88,141.82,50.0]
[1728160612375,27.0482,141.88,141.82,50.0]
[1728160612762,27.0482,141.88,141.84,50.0]
[1728160613077,27.0482,141.88,141.86,50.0]
[1728160613271,27.0482,141.88,141.83,65.0749]
[1728160614087,27.0482,141.88,141.85,50.0]
[1728160616577,27.0482,141.88,141.83,65.0749]
[1728160616779,27.0482,141.88,141.85,50.0]
[1728160617871,27.0482,141.88,141.83,65.0749]
[1728160622098,27.0482,141.88,141.87,23.5]
[1728160625188,27.17369,141.88,141.87,23.5]
[1728160625497,7.0505,141.84,141.81,50.0]
[1728160626196,7.0505,141.84,141.81,51.41008036]
[1728160626499,7.0505,141.84,141.81,50.0]
[1728160626708,7.0505,141.84,141.82,23.776884]
[1728160627502,7.0505,141.84,141.83,50.0]
[1728160627709,20.0,141.87,141.84,23.776884]
[1728160627710,7.0497,141.85,141.84,23.776884]
[1728160627875,7.0493,141.86,141.84,23.776884]
[1728160630493,7.0497,141.85,141.83,50.0]
[1728160632494,7.0497,141.85,141.84,23.776884]
[1728160632801,7.0493,141.86,141.84,23.776884]
[1728160633196,7.0497,141.85,141.84,23.776884]
[1728160635682,20.0,141.87,141.82,50.0]
[1728160635998,7.0501,141.84,141.82,50.0]
[1728160639201,20.0,141.87,141.8,50.0]
[1728160639202,7.051,141.83,141.8,50.0]
[1728160639410,7.0511,141.82,141.81,23.776884]
[1728160639712,20.0,141.87,141.81,23.776884]
[1728160639713,7.0508,141.83,141.81,23.776884]
[1728160641906,7.0522,141.8,141.78,50.0]
[1728160642118,7.0517,141.81,141.78,50.0]
[1728160642925,7.0523,141.8,141.78,50.0]
[1728160644097,7.0523,141.8,141.79,23.776884]
[1728160644794,7.0532,141.78,141.76,0.8516018]
[1728160645018,20.12549,141.82,141.76,0.8516018]
[1728160645314,7.0532,141.78,141.76,0.8516018]
[1728160645512,20.0,141.82,141.77,50.0]
[1728160645817,9.85930531,141.86,141.77,50.0]
[1728160645818,20.0,141.84,141.77,50.0]
[1728160645992,7.0521,141.8,141.77,50.0]
[1728160646314,7.0523,141.8,141.76,50.8516018]
[1728160647219,7.0518,141.81,141.78,50.0]
[1728160648718,7.0518,141.81,141.79,23.776884]
[1728160653205,20.0,141.84,141.76,50.8516018]
[1728160653409,7.0527,141.79,141.78,50.0]
[1728160653610,20.0,141.8,141.78,50.0]
[1728160653795,20.0,141.8,141.76,57.9056018]
[1728160654000,7.0517,141.81,141.76,57.9056018]
[1728160654303,7.0512,141.82,141.77,57.0536]
[1728160654523,7.0518,141.81,141.78,23.776884]
[1728160658823,73.48220822,141.86,141.77,50.0]
[1728160658824,7.0525,141.8,141.77,50.0]
[1728160662124,20.0,141.85,141.79,50.0]
[1728160662313,7.0515,141.82,141.78,23.776884]
[1728160662706,7.0522,141.8,141.78,23.776884]
[1728160663930,7.0522,141.8,141.77,50.0]
[1728160664706,23.0621,141.84,141.76,0.8516018]
[1728160664908,7.0531,141.79,141.76,0.8516018]
[1728160666234,7.0535,141.78,141.76,0.8516018]
[1728160667935,7.0536,141.77,141.76,0.8516018]
[1728160671535,7.0532,141.78,141.76,0.8516018]
[1728160672236,39.4879,141.83,141.76,0.8516018]
[1728160672530,20.0,141.8,141.77,23.776884]
[1728160673032,27.0523,141.8,141.77,23.776884]
[1728160683937,20.0,141.82,141.76,0.8516018]
[1728160684150,7.053,141.79,141.76,0.8516018]
[1728160688237,7.0525,141.8,141.76,0.8516018]
[1728160688434,7.0528,141.79,141.76,0.8516018]
[1728160688743,20.0,141.82,141.76,0.8516018]
[1728160688923,7.0533,141.78,141.76,0.8516018]
[1728160693628,33.20343013,141.77,141.76,0.8516018]
[1728160693841,20.0,141.73,141.71,50.0]
[1728160694148,7.0561,141.72,141.71,50.0]
[1728160695244,7.0561,141.72,141.7,1.41107768]
[1728160697335,6.1284923,141.71,141.7,25.18796168]
[1728160698254,6.1284923,141.71,141.7,23.776884]
[1728160698846,6.1284923,141.71,141.69,51.41124387]
[1728160699032,7.0561,141.72,141.69,51.41124387]
[1728160699531,7.0561,141.72,141.7,1.41128989]
[1728160700549,7.0557,141.73,141.7,1.41128989]
[1728160700856,7.0556,141.73,141.71,73.776884]
[1728160706755,7.0553,141.74,141.71,73.776884]
[1728160706934,20.0,141.73,141.71,73.776884]
[1728160707755,7.0558,141.73,141.71,73.776884]
[1728160709150,9.45026993,141.76,141.73,50.0]
[1728160709653,7.0546,141.75,141.74,23.776884]
[1728160711638,7.0546,141.75,141.73,50.0]
[1728160713455,7.0546,141.75,141.72,23.776884]
[1728160714446,7.0546,141.75,141.73,50.0]
[1728160717041,20.0,141.75,141.72,23.776884]
[1728160717237,20.0,141.75,141.71,50.0]
[1728160717545,7.0561,141.72,141.71,50.0]
[1728160719263,7.0558,141.73,141.71,73.776884]
[1728160723861,20.0,141.75,141.71,73.776884]
[1728160724246,7.0556,141.74,141.71,73.776884]
[1728160724662,20.0,141.75,141.72,23.776884]
[1728160724854,7.056,141.73,141.71,73.776884]
[1728160728170,7.0561,141.72,141.71,73.776884]
[1728160730965,20.0,141.75,141.71,73.776884]
[1728160731162,20.0,141.75,141.72,23.776884]
[1728160731163,6.10231923,141.74,141.72,23.776884]
[1728160731362,16.50446993,141.76,141.74,23.776884]
[1728160731564,9.45026993,141.76,141.75,50.0]
[1728160731783,7.053,141.79,141.75,73.776884]
[1728160732081,7.0541,141.76,141.73,67.6384]
[1728160732378,7.0541,141.76,141.74,23.776884]
[1728160732782,7.0537,141.77,141.76,23.776884]
[1728160733266,13.16512059,141.77,141.76,23.776884]
[1728160735184,13.16896738,141.77,141.76,23.776884]
[1728160735983,6.11526738,141.77,141.76,23.776884]
[1728160736578,6.12235193,141.77,141.76,23.776884]
[1728160737887,6.12235193,141.77,141.75,50.0]
[1728160738088,6.12235193,141.76,141.74,23.776884]
[1728160738389,13.18582483,141.75,141.74,23.776884]
[1728160738885,6.13122483,141.75,141.74,23.776884]
[1728160739669,7.0542,141.76,141.74,23.776884]
[1728160739862,6.13714518,141.75,141.74,23.776884]
[1728160741790,6.13714518,141.75,141.71,50.0]
[1728160741991,17.6339,141.78,141.71,50.0]
[1728160741992,13.19250742,141.74,141.71,50.0]
[1728160742283,6.13661678,141.73,141.71,50.0]
[1728160742482,6.13732423,141.73,141.71,50.0]
[1728160742687,6.13732423,141.72,141.71,50.0]
[1728160743005,6.13732423,141.72,141.71,80.0]
[1728160743194,6.13732423,141.72,141.71,103.776884]
[1728160748373,6.14029492,141.72,141.71,103.776884]
[1728160749386,6.14029492,141.72,141.71,80.0]
[1728160750695,6.14029492,141.72,141.71,103.776884]
[1728160751700,7.0555,141.74,141.71,103.776884]
[1728160751701,7.0555,141.74,141.72,23.776884]
[1728160752001,6.14102472,141.73,141.72,23.776884]
[1728160754876,13.19662472,141.73,141.72,23.776884]
[1728160755899,6.14102472,141.73,141.72,23.776884]
[1728160756190,13.19662472,141.73,141.72,23.776884]
[1728160761203,13.19622652,141.73,141.72,23.776884]
[1728160764485,13.19622652,141.73,141.72,53.776884]
[1728160766209,13.19622652,141.73,141.72,23.776884]
[1728160767603,7.0556,141.73,141.72,23.776884]
[1728160767908,13.19392661,141.73,141.72,23.776884]
[1728160768507,6.13832661,141.73,141.72,23.776884]
[1728160770219,6.13832661,141.73,141.72,25.18791403]
[1728160770708,6.13832661,141.73,141.72,55.18791403]
[1728160770891,6.13858382,141.73,141.72,25.18791403]
[1728160771306,7.0552,141.74,141.72,25.18791403]
[1728160771520,6.13875079,141.73,141.72,25.18791403]
[1728160771689,6.13875079,141.73,141.72,23.776884]
[1728160771889,6.13875079,141.73,141.72,25.18787394]
[1728160772511,6.13875079,141.73,141.72,23.776884]
[1728160773107,6.13875079,141.73,141.72,23.902374]
[1728160773417,6.13875079,141.73,141.72,32.36928518]
[1728160773806,6.13875079,141.73,141.72,30.958474]
[1728160774299,6.13875079,141.73,141.72,32.36926722]
[1728160775304,6.13875079,141.73,141.72,30.958474]
[1728160775504,6.13875079,141.73,141.72,48.94004501]
[1728160776294,16.44991086,141.79,141.76,50.0]
[1728160776609,6.1410365,141.78,141.77,1.41056039]
[1728160777618,6.14016272,141.78,141.77,1.41056039]
[1728160777789,6.14016272,141.78,141.76,50.0]
[1728160778091,6.14016272,141.77,141.76,73.776884]
[1728160781019,7.0529,141.79,141.76,73.776884]
[1728160781195,6.13762906,141.78,141.76,73.776884]
[1728160781396,6.13762906,141.77,141.76,73.776884]
[1728160783914,7.0529,141.79,141.76,73.776884]
[1728160784116,6.13551864,141.78,141.76,73.776884]
[1728160784422,6.13551864,141.77,141.76,73.776884]
[1728160789718,6.13551864,141.77,141.76,96.551874]
[1728160789927,8.27922646,141.87,141.82,50.0]
[1728160789928,7.0501,141.85,141.82,50.0]
[1728160790109,6.13150519,141.84,141.82,50.0]
[1728160790313,7.0501,141.85,141.83,1.40998572]
[1728160790827,6.12865412,141.84,141.83,25.18686972]
[1728160791524,6.12865412,141.84,141.83,23.776884]
[1728160793043,13.17875412,141.84,141.82,50.0]
[1728160793202,6.12865412,141.83,141.82,73.776884]
[1728160793723,6.12017296,141.83,141.82,73.776884]
[1728160794622,7.0497,141.85,141.82,73.776884]
[1728160794816,7.0506,141.83,141.82,50.0]
[1728160795030,20.12549,141.87,141.8,50.0]
[1728160795203,7.0513,141.82,141.8,50.0]
[1728160796130,7.0513,141.82,141.81,23.776884]
[1728160798025,7.17949,141.87,141.81,23.776884]
[1728160798210,7.0508,141.83,141.81,23.776884]
[1728160800226,7.0207,141.83,141.81,23.776884]
[1728160801110,7.0503,141.84,141.82,50.0]
[1728160804542,14.1031,141.87,141.85,50.0]
[1728160805335,7.054,141.87,141.85,50.0]
[1728160805639,7.054,141.87,141.86,1.40965886]
[1728160805933,7.054,141.88,141.86,23.776884]
[1728160807435,10.02176021,141.89,141.86,23.776884]
[1728160807638,7.0483,141.88,141.86,23.776884]
[1728160809639,7.0497,141.85,141.83,50.0]
[1728160810536,7.0501,141.84,141.83,50.0]
[1728160811352,7.0501,141.84,141.83,73.776884]
[1728160811724,10.02176021,141.89,141.82,23.776884]
[1728160811725,7.0507,141.83,141.82,23.776884]
[1728160812156,17.624,141.86,141.81,50.0]
[1728160812447,7.0511,141.82,141.81,50.0]
[1728160813432,7.0519,141.81,141.78,50.0]
[1728160813838,7.0513,141.82,141.78,50.0]
[1728160814647,7.0513,141.82,141.79,23.776884]
[1728160816555,20.0,141.86,141.82,50.0]
[1728160816727,6.10863118,141.85,141.82,50.0]
[1728160816931,6.10863118,141.84,141.82,50.0]
[1728160817164,20.0,141.86,141.82,50.0]
[1728160817449,6.11071598,141.85,141.82,50.0]
[1728160817655,6.11071598,141.84,141.82,50.0]
[1728160817859,7.0504,141.84,141.81,23.776884]
[1728160818035,7.0509,141.83,141.81,23.776884]
[1728160818740,7.0509,141.83,141.8,50.0]
[1728160819460,7.0509,141.83,141.81,23.776884]
[1728160821255,7.0502,141.84,141.81,25.1869894]
[1728160821458,6.11899724,141.83,141.81,25.1869894]
[1728160821639,7.0502,141.84,141.81,25.1869894]
[1728160821640,7.0498,141.85,141.82,50.0]
[1728160821838,6.11903075,141.84,141.82,50.0]
[1728160822034,6.11903075,141.83,141.82,73.776884]
[1728160823166,6.11962174,141.84,141.82,73.776884]
[1728160823457,6.11962174,141.83,141.82,73.776884]
[1728160824152,27.0492,141.86,141.83,23.776884]
[1728160824348,6.12174078,141.85,141.84,1.40984279]
[1728160826059,6.12174078,141.85,141.83,23.776884]
[1728160826259,6.12174078,141.84,141.83,23.776884]
[1728160826450,6.12392704,141.84,141.83,23.776884]
[1728160831658,6.12392704,141.84,141.83,25.18680045]
[1728160831857,6.12392704,141.84,141.83,23.776884]
[1728160832854,7.0498,141.85,141.83,23.776884]
[1728160833166,6.13286186,141.84,141.83,23.776884]
[1728160837367,13.18296186,141.84,141.82,50.0]
[1728160837559,6.13286186,141.83,141.82,50.0]
[1728160837746,6.13286186,141.83,141.82,73.776884]
[1728160839358,20.0,141.86,141.81,23.776884]
[1728160839560,7.0507,141.83,141.81,23.776884]
[1728160839962,6.14212495,141.82,141.81,23.776884]
[1728160842476,7.0503,141.84,141.81,23.776884]
[1728160842663,6.14263699,141.82,141.81,23.776884]
[1728160848887,7.0507,141.83,141.81,23.776884]
[1728160849081,6.14226361,141.82,141.81,23.776884]
[1728160849378,6.14228886,141.82,141.81,23.776884]
[1728160852277,6.14235507,141.82,141.81,23.776884]
[1728160854880,6.14235507,141.82,141.8,50.0]
[1728160855088,6.14235507,141.81,141.8,73.776884]
[1728160855766,6.14567141,141.81,141.8,73.776884]
[1728160857162,7.0513,141.82,141.8,73.776884]
[1728160857781,6.14655495,141.81,141.8,73.776884]
[1728160860178,6.14655495,141.81,141.8,75.18712554]
[1728160861171,6.14655495,141.81,141.79,23.776884]
[1728160861372,6.14655495,141.8,141.79,23.776884]
[1728160862108,6.14655495,141.8,141.78,50.0]
[1728160862387,6.14655495,141.79,141.78,73.776884]
[1728160864665,6.14655495,141.79,141.78,50.0]
[1728160866989,6.14655495,141.79,141.78,73.776884]
[1728160867483,6.14655495,141.79,141.78,75.18721936]
[1728160867685,6.14655495,141.79,141.76,67.6346]
[1728160867891,6.14655495,141.78,141.77,23.776884]
[1728160869081,7.0523,141.8,141.77,23.776884]
[1728160869395,6.1372207,141.79,141.77,23.776884]
[1728160869689,6.1372207,141.78,141.77,23.776884]
[1728160870380,13.1904207,141.78,141.76,50.0]
[1728160870620,6.1372207,141.77,141.76,73.776884]
[1728160871679,13.1908207,141.77,141.73,74.6939]
[1728160871880,6.1372207,141.76,141.73,67.6383]
[1728160872190,7.0536,141.77,141.73,74.6939]
[1728160872493,6.13285597,141.76,141.73,69.04901314]
[1728160872787,7.0536,141.77,141.73,69.04901314]
[1728160872975,13.18477241,141.76,141.73,51.41071314]
[1728160873176,6.13047241,141.75,141.73,51.41071314]
[1728160873375,7.0543,141.76,141.73,51.41071314]
[1728160873585,13.18142203,141.75,141.73,50.0]
[1728160873770,6.12652455,141.74,141.73,50.0]
[1728160874281,7.0548,141.75,141.73,50.0]
[1728160874980,13.17795977,141.74,141.71,50.0]
[1728160875291,6.12275977,141.73,141.72,23.776884]
[1728160875485,7.0552,141.74,141.72,23.776884]
[1728160876596,7.0556,141.73,141.71,51.41097071]
[1728160876800,7.0552,141.74,141.71,51.41097071]
[1728160878076,7.0552,141.74,141.71,50.0]
[1728160878588,7.0552,141.74,141.72,1.41105159]
[1728160881697,7.0552,141.74,141.71,50.0]
[1728160882776,7.0552,141.74,141.71,51.41105565]
[1728160886010,7.0548,141.75,141.72,23.776884]
[1728160886298,7.0548,141.75,141.73,1.41093964]
[1728160886477,7.0548,141.75,141.72,23.776884]
[1728160886478,20.0,141.74,141.72,23.776884]
[1728160886896,6.6565,141.78,141.73,50.0]
[1728160887078,6.09959304,141.77,141.74,23.776884]
[1728160887286,17.6326,141.79,141.74,25.18766888]
[1728160887484,6.09955352,141.78,141.74,25.18766888]
[1728160887696,6.09955352,141.77,141.74,25.18766888]
[1728160887891,17.6326,141.79,141.74,25.18766888]
[1728160888193,20.0,141.75,141.74,23.776884]
[1728160888380,8.43108639,141.82,141.75,50.0]
[1728160888585,6.10036692,141.79,141.75,50.0]
[1728160888789,8.43108639,141.82,141.75,50.0]
[1728160889105,7.0537,141.77,141.75,50.0]
[1728160890898,27.0541,141.76,141.74,23.776884]
[1728160896293,7.0546,141.75,141.73,50.0]
[1728160897002,7.0546,141.75,141.73,51.41087331]
[1728160899007,7.0546,141.75,141.73,50.0]
[1728160899396,7.0546,141.75,141.73,51.41087548]
[1728160900706,7.0546,141.75,141.73,50.0]
[1728160902603,26.11540585,141.74,141.73,50.0]
[1728160903692,26.11540585,141.74,141.73,73.776884]
[1728160908216,26.12244695,141.74,141.73,73.776884]
[1728160908709,33.17754695,141.74,141.72,23.776884]
[1728160908920,33.17754695,141.74,141.71,50.0]
[1728160908921,13.17814695,141.73,141.71,50.0]
[1728160909120,7.0557,141.73,141.71,50.0]
[1728160909494,6.12447656,141.72,141.71,50.0]
[1728160909899,26.12447656,141.72,141.71,50.0]
[1728160910112,33.18057656,141.72,141.69,50.0]
[1728160910305,6.12511651,141.71,141.7,1.41122543]
[1728160911807,6.12511651,141.71,141.7,25.18810943]
[1728160912822,6.12511651,141.71,141.7,23.776884]
[1728160914132,6.12511651,141.71,141.69,51.41112975]
[1728160914302,6.12511651,141.7,141.69,51.41112975]
[1728160914496,6.12511651,141.71,141.69,51.41112975]
[1728160914703,6.12511651,141.7,141.69,51.41112975]
[1728160915211,6.12885141,141.71,141.7,23.776884]
[1728160915415,6.12850527,141.71,141.7,23.776884]
[1728160917021,6.12850527,141.71,141.7,25.18812766]
[1728160917508,6.12850527,141.71,141.7,23.776884]
[1728160917823,13.18954797,141.71,141.7,23.776884]
[1728160919724,6.13294797,141.71,141.7,23.776884]
[1728160920023,6.13294797,141.71,141.7,25.18813456]
[1728160920225,13.18964797,141.71,141.69,50.0]
[1728160920403,6.13294797,141.7,141.69,73.776884]
[1728160927327,7.0567,141.71,141.69,73.776884]
[1728160927532,7.0567,141.71,141.7,1.41128078]
[1728160927702,7.0567,141.71,141.69,73.776884]
[1728160928503,7.0567,141.71,141.7,1.41129727]
[1728160929023,7.0567,141.71,141.69,73.776884]
[1728160929227,7.0567,141.71,141.7,1.41129715]
[1728160929727,7.0567,141.71,141.69,73.776884]
[1728160929923,7.0567,141.71,141.7,1.41129697]
[1728160930224,7.0561,141.72,141.7,1.41129697]
[1728160932232,17.6375,141.75,141.7,1.41129697]
[1728160932412,20.0,141.72,141.7,1.41129697]
[1728160932723,7.0562,141.72,141.7,1.41129697]
[1728160940226,7.0553,141.74,141.71,73.776884]
[1728160940532,20.0,141.73,141.71,73.776884]
[1728160941711,20.0,141.74,141.71,73.776884]
[1728160942033,27.0542,141.76,141.73,50.0]
[1728160942233,27.0542,141.76,141.74,23.776884]
[1728160942532,27.0542,141.76,141.73,50.0]
[1728160947338,20.0,141.74,141.73,73.776884]
[1728160947844,20.0,141.74,141.73,50.0]
[1728160950841,20.0,141.74,141.73,73.776884]
[1728160958735,27.0551,141.74,141.73,73.776884]
[1728160961955,27.0551,141.74,141.73,50.0]
[1728160962424,7.0557,141.73,141.72,23.776884]
[1728160963032,7.0561,141.72,141.69,51.41102974]
[1728160964148,20.0,141.74,141.69,50.0]
[1728160964450,7.0566,141.71,141.7,25.18813694]
[1728160966240,7.0562,141.72,141.7,25.18813694]
[1728160966446,20.0,141.72,141.71,73.776884]
[1728160967034,7.0551,141.74,141.71,73.776884]
[1728160967235,20.0,141.73,141.72,25.1878616]
[1728160967448,20.0,141.73,141.72,23.776884]
[1728160970249,7.055,141.75,141.74,73.776884]
[1728160970552,27.055,141.75,141.74,73.776884]
[1728160972550,20.0,141.75,141.74,73.776884]
[1728160972851,27.0546,141.75,141.74,73.776884]
[1728160975336,20.0,141.75,141.73,23.776884]
[1728160975541,27.0553,141.74,141.73,23.776884]
[1728160978740,7.0556,141.73,141.72,50.0]
[1728160978935,7.0556,141.73,141.72,73.776884]
[1728160992759,27.0556,141.73,141.72,73.776884]
[1728160992961,7.0565,141.72,141.7,50.0]
[1728160993174,7.0565,141.72,141.71,23.776884]
[1728160993461,27.0565,141.72,141.71,23.776884]
[1728160993653,7.0565,141.72,141.7,50.0]
[1728160993861,27.0565,141.72,141.71,1.4111454]
[1728160994366,7.0566,141.71,141.7,73.776884]
[1728160997974,27.0562,141.72,141.71,23.776884]
[1728161004979,27.0566,141.71,141.7,73.776884]
[1728161011883,20.0,141.73,141.68,50.0]
[1728161012086,7.0571,141.7,141.69,23.776884]
[1728161013490,27.0571,141.7,141.69,23.776884]
[1728161014164,20.0,141.7,141.68,50.0]
[1728161014369,7.0576,141.69,141.68,73.776884]
[1728161015067,34.2009,141.74,141.7,50.0]
[1728161015068,16.5625,141.74,141.7,50.0]
[1728161015280,27.0566,141.71,141.7,73.776884]
[1728161038386,31.89090871,141.76,141.73,50.0]
[1728161038585,31.89090871,141.76,141.75,73.776884]
[1728161039681,22.0024671,141.76,141.75,73.776884]
[1728161039995,9.88844161,141.79,141.77,50.0]
[1728161040713,20.0,141.78,141.75,73.776884]
[1728161040873,9.88844161,141.78,141.76,23.776884]
[1728161041370,20.0,141.77,141.76,23.776884]
[1728161042985,27.0536,141.77,141.76,23.776884]
[1728161046087,27.0536,141.77,141.76,25.18753724]
[1728161047413,7.0521,141.8,141.79,73.776884]
[1728161047786,7.0521,141.8,141.79,50.0]
[1728161048910,27.0521,141.8,141.79,50.0]
[1728161049402,7.0521,141.8,141.79,73.776884]
[1728161050083,7.0521,141.8,141.79,73.902374]
[1728161050280,14.1148,141.81,141.8,74.027864]
[1728161050478,14.1148,141.81,141.8,75.43795923]
[1728161052211,7.0518,141.81,141.8,75.43795923]
[1728161052514,7.0518,141.81,141.8,74.027864]
[1728161052701,20.0,141.86,141.83,50.0]
[1728161052885,27.0501,141.84,141.83,73.776884]
[1728161054005,27.0501,141.84,141.83,73.902374]
[1728161054313,7.0501,141.84,141.83,73.902374]
[1728161055311,7.0501,141.84,141.83,73.776884]
[1728161058081,7.0501,141.84,141.83,50.0]
[1728161058299,27.0501,141.84,141.83,50.0]
[1728161062007,20.0,141.84,141.81,50.0]
[1728161062209,7.0511,141.82,141.81,50.0]
[1728161062704,20.0,141.82,141.79,50.0]
[1728161063005,7.0521,141.8,141.79,50.0]
[1728161063408,7.0517,141.81,141.79,50.0]
[1728161063618,7.051,141.83,141.81,50.0]
[1728161063799,27.0506,141.83,141.82,1.41001974]
[1728161064303,27.0506,141.83,141.82,25.18690374]
[1728161067713,27.0506,141.83,141.82,23.776884]
[1728161068514,7.0511,141.82,141.81,50.0]
[1728161068814,7.0511,141.82,141.81,73.776884]
[1728161069320,7.0511,141.82,141.81,50.0]
[1728161070809,7.0511,141.82,141.81,73.776884]
[1728161099637,7.0511,141.82,141.81,73.902374]
[1728161104538,7.0511,141.82,141.81,74.027864]
[1728161107735,39.79725258,141.85,141.84,50.0]
[1728161107951,46.84695258,141.85,141.84,50.0]
[1728161108535,46.84695258,141.85,141.84,73.776884]
[1728161109642,26.84695258,141.85,141.84,73.902374]
[1728161109825,26.84695258,141.85,141.84,74.027864]
[1728161111258,46.84695258,141.85,141.84,50.0]
[1728161111423,46.84695258,141.85,141.84,80.0]
[1728161111424,56.73539419,141.85,141.84,80.0]
[1728161111824,36.93814161,141.85,141.84,80.0]
[1728161112421,27.0506,141.83,141.82,50.0]
[1728161112745,20.0,141.82,141.8,50.0]
[1728161112923,27.0516,141.81,141.8,50.0]
[1728161114331,27.0516,141.81,141.8,73.902374]
[1728161115132,27.0516,141.81,141.8,73.776884]
[1728161116030,27.0516,141.81,141.8,50.0]
[1728161116227,27.0516,141.81,141.78,50.0]
[1728161116228,27.0526,141.79,141.78,50.0]
[1728161116636,27.0526,141.79,141.78,80.0]
[1728161116850,27.0526,141.79,141.78,50.0]
[1728161123034,27.0539,141.77,141.76,73.902374]
[1728161123354,27.0546,141.75,141.74,50.0]
[1728161125154,27.0546,141.75,141.74,73.902374]
[1728161127639,27.0546,141.75,141.74,50.0]
[1728161128356,27.0556,141.73,141.72,73.902374]
[1728161128865,27.0556,141.73,141.72,103.902374]
[1728161129459,20.0,141.73,141.72,104.027864]
[1728161130142,20.0,141.73,141.72,105.43870438]
[1728161130370,20.0,141.73,141.72,75.43870438]
[1728161131171,20.0,141.73,141.72,105.43870438]
[1728161132052,20.0,141.73,141.72,104.027864]
[1728161140172,27.0556,141.73,141.72,104.027864]
[1728161143757,27.0556,141.73,141.72,103.902374]
[1728161146483,27.0556,141.73,141.72,73.902374]
[1728161147981,27.0556,141.73,141.72,73.776884]
[1728161149180,27.0566,141.71,141.7,50.0]
[1728161150758,27.0566,141.71,141.7,73.776884]
[1728161157260,27.0566,141.71,141.7,73.902374]
[1728161160685,27.0571,141.7,141.69,23.902374]
[1728161160877,27.0571,141.7,141.69,53.902374]
[1728161161973,27.0571,141.7,141.69,23.902374]
[1728161163389,7.0576,141.69,141.68,50.0]
[1728161163581,27.0576,141.69,141.68,73.902374]
[1728161165689,27.0576,141.69,141.68,50.12549]
[1728161165989,27.0576,141.69,141.68,50.0]
[1728161166489,20.0,141.69,141.68,74.027864]
[1728161166685,20.0,141.69,141.68,104.027864]
[1728161169166,20.0,141.69,141.68,103.902374]
[1728161169369,27.0576,141.69,141.68,73.902374]
[1728161179604,27.0576,141.69,141.68,73.776884]
[1728161201618,27.0576,141.69,141.68,73.902374]
[1728161208933,27.0576,141.69,141.68,50.0]
[1728161217517,20.0,141.69,141.66,50.0]
[1728161217706,27.0586,141.67,141.66,73.902374]
[1728161217911,27.0586,141.67,141.66,103.902374]
[1728161218709,27.0586,141.67,141.66,73.902374]
[1728161223934,7.0596,141.65,141.64,50.0]
[1728161224235,27.0606,141.63,141.62,50.0]
[1728161225224,27.0611,141.62,141.61,0.8516018]
[1728161226219,27.0611,141.62,141.54,15.0023]
[1728161226220,7.0636,141.58,141.56,50.0]
[1728161226444,7.0636,141.57,141.56,50.0]
[1728161227116,27.0626,141.59,141.58,50.0]
[1728161227521,27.0636,141.57,141.56,50.0]
[1728161228636,20.0,141.57,141.56,50.0]
[1728161228833,20.0,141.57,141.56,74.027864]
[1728161240342,20.0,141.57,141.56,50.0]
[1728161240640,27.0636,141.57,141.56,50.0]
[1728161241731,27.0636,141.57,141.56,74.027864]
[1728161244844,27.0636,141.57,141.56,73.902374]
[1728161246544,27.0636,141.57,141.56,50.0]